[Event "German-ch Blitz Women 2022"]
[Site "Magdeburg"]
[Date "2022.08.13"]
[Round "2.2"]
[White "Schulze, Lara"]
[Black "Stärk, Elisa"]
[Result "0-1"]
[ECO "B06"]
[WhiteElo "2292"]
[BlackElo "1950"]
[Annotator "TA"]
[PlyCount "113"]
[EventDate "2022.08.10"]
[EventType "tourn"]
[EventCountry "GER"]
[SourceTitle "playchess.com"]
[Source "ChessBase"]
[SourceQuality "1"]
[TimeControl "180+2"]

{[%evp 16,113,83,76,83,72,89,68,182,186,294,280,270,280,265,256,264,212,279,264,270,225,237,193,191,45,161,32,22,-212,-220,-231,-213,-216,-222,-222,-227,-320,-302,-302,-294,-415,-408,-402,-400,-378,-243,-369,-289,-376,-377,-390,-379,-421,-414,-524,-483,-553,-547,-538,-526,-467,-361,-628,-612,-597,-593,-1391,-1334,-1330,-1237,-841,-841,-1040,-1399,-1315,-1155,-1256,-1132,-2827,-2560,-2488,-2313,-955,0,-1860,-1839,-1752,-1716,-5712,-5097,-29976,-29977,-5716,-1366,-5289,-10,-8,0,0]} 1. e4 {[%emt 0:00:01]} g6 {[%emt 0:00:00]} 2. d4 {[%emt 0:00:01]} Bg7 {[%emt 0:00:01]} 3. Nf3 {[%emt 0:00:02]} c5 {[%emt 0:00:00]} 4. d5 {[%emt 0:00:14]} d6 {[%emt 0:00:02]} 5. Nc3 {[%emt 0:00:04]} Nf6 {[%emt 0:00:02]} 6. h3 {[%emt 0:00:04]} O-O {[%emt 0:00:02]} 7. Be2 {[%emt 0:00:02]} a6 {[%emt 0:00:02]} 8. a4 {[%emt 0:00:02]} Nbd7 {[%emt 0:00:02]} 9. O-O {[%emt 0:00:04]} Re8 {[%emt 0:00:09] A43: Schmid Benoni.} 10. Bf4 {[%emt 0:00:05]} Nh5 {[%emt 0:00:08]} 11. Bh2 {[%emt 0:00:10] [#]} Ne5 $146 {[%emt 0:00:05]} ({Better is} 11... Bh6 $14) ({Predecessor:} 11... Qc7 12. Nd2 Nhf6 13. f4 e5 14. dxe6 fxe6 15. Nc4 d5 16. exd5 Nxd5 17. Nxd5 exd5 18. Qxd5+ {1-0 (35) Mabic,G (2123)-Matas,M (2053) Sibenik 2007}) 12. Nxe5 $18 {[%emt 0:00:03]} Bxe5 {[%emt 0:00:01]} (12... dxe5 $142 13. Bxh5 gxh5 14. Qxh5 Qd6) 13. Bxe5 {[%emt 0:00:02]} dxe5 {[%emt 0:00:01]} 14. Bxh5 {[%emt 0:00:03]} gxh5 {[%emt 0:00:02]} 15. Qxh5 {[%emt 0:00:05]} Qd6 {[%emt 0:00:06]} 16. Rfe1 {[%emt 0:00:07]} Kh8 {[%emt 0:00:18]} 17. Re3 {[%emt 0:00:30]} Bd7 {[%emt 0:00:11]} 18. a5 {[%emt 0:00:02]} Rg8 {[%emt 0:00:05]} 19. Kh1 {[%emt 0:00:10]} Rg6 {[%emt 0:00:05][%cal Od7g4]} 20. Ne2 {[%emt 0:00:20]} ({White should try} 20. Rg3 $18) 20... Rag8 {[%emt 0:00:05] [#]} (20... Rh6 $1 $14 21. Qxf7 Rf6) 21. Ng3 {[%emt 0:00:02]} (21. Rg3 $1 $18) 21... Bg4 $1 $14 {[%emt 0:00:29]} 22. Nf5 $2 {[%emt 0:00:35]} Bxh5 $19 {[%emt 0:00:09]} 23. Nxd6 {[%emt 0:00:03]} exd6 {[%emt 0:00:06]} 24. g4 {[%emt 0:00:02] [#]} Bxg4 {[%emt 0:00:05]} 25. hxg4 {[%emt 0:00:01]} Rxg4 {[%emt 0:00:05][%mdl 4096] Endgame ( -> ...Rh4+). KRR-KRR} 26. Rg3 {[%emt 0:00:19]} (26. Raa3 $142) 26... Rh4+ {[%emt 0:00:12]} ({Don't blunder} 26... Rxg3 $2 27. fxg3 Rxg3 28. Re1 $19) 27. Kg2 {[%emt 0:00:01]} Rxg3+ {[%emt 0:00:03]} ({But not} 27... Rxe4 $2 28. Rxg8+ Kxg8 29. Ra3 $19) 28. fxg3 {[%emt 0:00:07]} (28. Kxg3 $142 Rxe4 29. Kf3) 28... Rxe4 {[%emt 0:00:01] White must now prevent ...Re2+. KR-KR} 29. Kf3 {[%emt 0:00:07]} Rd4 {[%emt 0:00:05]} 30. Ra3 {[%emt 0:00:04]} c4 {[%emt 0:00:09]} 31. Ra4 {[%emt 0:00:03]} (31. b3 {was the only defense.}) 31... Rxd5 {[%emt 0:00:04]} 32. Rxc4 {[%emt 0:00:01]} Rxa5 {[%emt 0:00:01]} 33. Rc7 {[%emt 0:00:05]} Rb5 {[%emt 0:00:04]} 34. b3 {[%emt 0:00:03]} Kg7 {[%emt 0:00:02]} 35. Ke4 {[%emt 0:00:02]} Kf6 {[%emt 0:00:04]} 36. Rd7 {[%emt 0:00:16]} Ke6 {[%emt 0:00:05]} 37. Rd8 {[%emt 0:00:01]} d5+ {[%emt 0:00:03][%cal Bd6d5,Bd5d4][%mdl 32]} 38. Kd3 {[%emt 0:00:01]} Rc5 {[%emt 0:00:12]} 39. Rh8 $2 {[%emt 0:00:01]} (39. Re8+ Kf6 40. c3) 39... e4+ {[%emt 0:00:02]} 40. Kd2 {[%emt 0:00:05]} d4 {[%emt 0:00:07] Inhibits c3.} 41. Rxh7 {[%emt 0:00:02]} Rg5 {[%emt 0:00:05]} 42. Rh6+ {[%emt 0:00:05]} f6 {[%emt 0:00:02]} 43. Rh3 {[%emt 0:00:03]} Ke5 {[%emt 0:00:03]} 44. Ke2 {[%emt 0:00:04]} f5 {[%emt 0:00:02]} 45. Kd2 {[%emt 0:00:02]} Rg7 {[%emt 0:00:05] Hoping for ...e3+.} 46. Ke2 {[%emt 0:00:02]} Rc7 {[%emt 0:00:03]} 47. Kd2 {[%emt 0:00:01]} e3+ {[%emt 0:00:02]} 48. Kd1 {[%emt 0:00:04]} Ke4 {[%emt 0:00:02]} 49. Rh4+ {[%emt 0:00:03]} Ke5 $2 {[%emt 0:00:04]} (49... Kf3 $19 {And now ...e2+ would win.} 50. Rf4+ Kxg3 51. Rxf5 Rh7) 50. Rh8 $2 {[%emt 0:00:03][%mdl 8192]} (50. Rh3 $11 e2+ 51. Kxe2 Rxc2+ 52. Kd1) 50... Rg7 {[%emt 0:00:07]} 51. Re8+ {[%emt 0:00:01]} Kd5 {[%emt 0:00:01]} 52. Rd8+ {[%emt 0:00:01]} Ke4 {[%emt 0:00:01]} 53. Re8+ {[%emt 0:00:03]} Kf3 {[%emt 0:00:01]} 54. Rf8 {[%emt 0:00:03]} Rg4 {[%emt 0:00:04]} (54... Rg5 $142 55. Kc1 Rh5) 55. Ke1 {[%emt 0:00:01]} e2 $2 {[%emt 0:00:03]} (55... f4 $19 56. Rh8 fxg3) 56. Rxf5+ $11 {[%emt 0:00:01]} Ke3 {[%emt 0:00:01] Strongly threatening ...d3.} 57. Re5+ {[%emt 0:00:00][%mdl 32768] Weighted Error Value: White=0.81/Black=0.29 (precise) . Loss on time!?} 0-1

[Event "German-ch Blitz Women 2022"]
[Site "Magdeburg"]
[Date "2022.08.13"]
[Round "2.3"]
[White "Nikolaeva, Mariya A"]
[Black "Zschischang, Marine"]
[Result "1/2-1/2"]
[ECO "C02"]
[WhiteElo "1309"]
[BlackElo "2083"]
[Annotator "NA RC"]
[PlyCount "89"]
[EventDate "2022.08.10"]
[EventType "tourn"]
[EventCountry "GER"]
[SourceTitle "playchess.com"]
[Source "ChessBase"]
[SourceQuality "1"]
[TimeControl "180+2"]

1. e4 {[%emt 0:00:01]} e6 {[%emt 0:00:00]} 2. d4 d5 3. e5 {[%emt 0:00:02]} c5 {[%emt 0:00:01]} 4. c3 {[%emt 0:00:01]} Nc6 {[%emt 0:00:01]} 5. Nf3 {[%emt 0:00:01]} Qb6 {[%emt 0:00:01]} 6. a3 {[%emt 0:00:02]} c4 {[%emt 0:00:02]} 7. Nbd2 {[%emt 0:00:05]} Na5 {[%emt 0:00:01]} 8. g3 {[%emt 0:00:02]} Bd7 {[%emt 0:00:01]} 9. Bg2 {[%emt 0:00:01]} Ne7 {[%emt 0:00:02]} 10. O-O {[%emt 0:00:02]} Nc8 {[%emt 0:00:01]} 11. Ne1 {[%emt 0:00:13]} Qc7 {[%emt 0:00:02]} 12. f4 {[%emt 0:00:02]} g6 {[%emt 0:00:01]} 13. Nef3 {[%emt 0:00:01]} Nb6 {[%emt 0:00:02]} 14. Re1 {[%emt 0:00:07]} O-O-O {[%emt 0:00:12]} 15. Qc2 {[%emt 0:00:17]} Be7 {[%emt 0:00:17]} 16. b4 {[%emt 0:00:44]} cxb3 {[%emt 0:00:02]} 17. Nxb3 {[%emt 0:00:02]} Ba4 {[%emt 0:00:02]} 18. Rb1 {[%emt 0:00:01]} Nxb3 {[%emt 0:00:11]} 19. Rxb3 {[%emt 0:00:01]} Bxb3 {[%emt 0:00:05]} 20. Qxb3 {[%emt 0:00:01]} Qc4 {[%emt 0:00:13]} 21. Qc2 {[%emt 0:00:11]} Kb8 {[%emt 0:00:01]} 22. Nd2 {[%emt 0:00:01]} Qc7 {[%emt 0:00:01]} 23. Nb3 {[%emt 0:00:10]} Rc8 {[%emt 0:00:04]} 24. Bb2 {[%emt 0:00:01]} Nc4 {[%emt 0:00:06]} 25. Rc1 {[%emt 0:00:07]} Nxa3 {[%emt 0:00:14]} 26. Bxa3 {[%emt 0:00:14]} Bxa3 {[%emt 0:00:02]} 27. Ra1 {[%emt 0:00:00]} Be7 {[%emt 0:00:11]} 28. Qa2 {[%emt 0:00:14]} a6 {[%emt 0:00:18]} 29. Bf1 {[%emt 0:00:23]} Qb6 {[%emt 0:00:06]} 30. Rb1 {[%emt 0:00:23]} Rxc3 {[%emt 0:00:26]} 31. Na5 {[%emt 0:00:21]} Qxd4+ {[%emt 0:00:29]} 32. Kh1 {[%emt 0:00:01]} b5 {[%emt 0:00:24]} 33. Bxb5 {[%emt 0:00:04]} axb5 {[%emt 0:00:09]} 34. Rxb5+ {[%emt 0:00:02]} Kc8 {[%emt 0:00:05]} 35. Nb3 {[%emt 0:00:04]} Qe4+ {[%emt 0:00:01]} 36. Kg1 {[%emt 0:00:03]} Rc1+ {[%emt 0:00:01]} 37. Nxc1 {[%emt 0:00:01]} Qe1+ {[%emt 0:00:01]} 38. Kg2 {[%emt 0:00:01]} Qe4+ {[%emt 0:00:01]} 39. Kg1 {[%emt 0:00:01]} Qe3+ {[%emt 0:00:03]} 40. Kg2 {[%emt 0:00:02]} Qe4+ {[%emt 0:00:01]} 41. Kg1 {[%emt 0:00:01]} Qd4+ {[%emt 0:00:02]} 42. Kg2 {[%emt 0:00:03]} Qe4+ {[%emt 0:00:03]} 43. Kg1 {[%emt 0:00:02]} Qe3+ {[%emt 0:00:04]} 44. Kg2 {[%emt 0:00:01]} Qe4+ {[%emt 0:00:02]} 45. Kg1 {[%emt 0:00:01]} 1/2-1/2

[Event "German-ch Blitz Women 2022"]
[Site "Magdeburg"]
[Date "2022.08.13"]
[Round "2.4"]
[White "Zhou, Lepu Coco"]
[Black "Schuster, Rebekka"]
[Result "1/2-1/2"]
[ECO "C14"]
[WhiteElo "1986"]
[BlackElo "1815"]
[Annotator "TA"]
[PlyCount "33"]
[EventDate "2022.08.10"]
[EventType "tourn"]
[EventCountry "GER"]
[SourceTitle "playchess.com"]
[Source "ChessBase"]
[SourceQuality "1"]
[TimeControl "180+2"]

{[%evp 14,33,24,14,38,16,50,0,1,16,522,543,519,116,29991,29992,29992,29993,29993,1438,1431,1422]} 1. e4 {[%emt 0:00:02]} e6 {[%emt 0:00:00]} 2. d4 {[%emt 0:00:02]} d5 {[%emt 0:00:01]} 3. Nc3 {[%emt 0:00:01]} Nf6 {[%emt 0:00:00]} 4. Bg5 {[%emt 0:00:03]} Be7 {[%emt 0:00:01]} 5. e5 {[%emt 0:00:01]} Nfd7 {[%emt 0:00:01]} 6. Bxe7 {[%emt 0:00:02]} Qxe7 {[%emt 0:00:01]} 7. f4 {[%emt 0:00:01]} a6 {[%emt 0:00:10]} 8. Qg4 {[%emt 0:00:02]} f6 {[%emt 0:00:14] C14: French: Classical System: 4 Bg5 Be7 main line.} 9. Nf3 {[%emt 0:00:14]} O-O {[%emt 0:00:05] [#]} 10. h4 $146 {[%emt 0:00:11]} (10. O-O-O $14 {feels stronger.}) ({Predecessor:} 10. Bd3 f5 11. Qh3 c5 12. g4 c4 13. Bxf5 exf5 14. Nxd5 Qd8 15. Ng5 h6 16. Ne6 {1-0 (31) Wijesinghe,W (1575)-Ranganath,T (1362) Colombo 2020}) 10... c5 $1 $11 {[%emt 0:00:12] The position is equal.} 11. Bd3 {[%emt 0:00:31][%cal Od3h7] Bxh7+! is the strong threat.} c4 $2 {[%emt 0:00:46][%mdl 8192] [#]} (11... cxd4 $11 {and Black is okay.} 12. Nxd4 Nc5) 12. Bxh7+ $1 $18 {[%emt 0:00:25][%mdl 512]} Kxh7 {[%emt 0:00:00] [#]} 13. Ng5+ $2 $40 {[%emt 0:00:08][%mdl 128] White wants a kill.} ({Worse is} 13. h5 Nc6 14. O-O-O Nb6 $17) ({Wrong is} 13. f5 $2 Kg8 14. Qg6 (14. fxe6 $2 Nb6 $19) 14... Nc6 $19) (13. Qh5+ $1 $18 {is the precise move to win.} Kg8 {[#]} 14. Ng5 $1 {[%mdl 512]}) 13... fxg5 $4 {[%emt 0:00:51][%mdl 8192]} (13... Kh6 $16) 14. hxg5+ Kg8 15. g6 {[%emt 0:00:08]} Rf5 {[%emt 0:00:50]} 16. Rh8+ {[%emt 0:00:08]} Kxh8 {[%emt 0:00:05]} 17. Qh3+ {[%emt 0:00:01][%mdl 32768] Weighted Error Value: White=0.50/Black=1.39. An unexpected result.} 1/2-1/2

[Event "German-ch Blitz Women 2022"]
[Site "Magdeburg"]
[Date "2022.08.13"]
[Round "2.5"]
[White "Muetsch, Annmarie"]
[Black "Fock, Sana"]
[Result "1-0"]
[ECO "B23"]
[WhiteElo "2249"]
[BlackElo "1807"]
[Annotator "TA"]
[PlyCount "59"]
[EventDate "2022.08.10"]
[EventType "tourn"]
[EventCountry "GER"]
[SourceTitle "playchess.com"]
[Source "ChessBase"]
[SourceQuality "1"]
[TimeControl "180+2"]

{[%evp 9,59,15,5,-10,4,-12,-5,-12,-18,-30,-3,-13,13,4,22,-4,22,10,10,-29,-17,-29,-23,-16,-16,-44,-7,-22,25,0,50,21,18,0,15,-10,0,2,93,11,195,177,279,264,260,267,236,129,252,249,1054,934]} 1. e4 {[%emt 0:00:01]} c5 {[%emt 0:00:01]} 2. Nc3 {[%emt 0:00:02]} d6 {[%emt 0:00:01]} 3. d3 {[%emt 0:00:04]} g6 {[%emt 0:00:04]} 4. g3 {[%emt 0:00:02]} Bg7 {[%emt 0:00:02]} 5. Bg2 {[%emt 0:00:00]} e6 {[%emt 0:00:02]} 6. h4 {[%emt 0:00:05] B23: Closed Sicilian: Lines without g3.} h5 {[%emt 0:00:16]} 7. Nh3 {[%emt 0:00:11]} Nc6 {[%emt 0:00:17]} 8. O-O {[%emt 0:00:06] The position is equal.} Nge7 {[%emt 0:00:11]} 9. Bg5 {[%emt 0:00:14] [#]} Qc7 $146 {[%emt 0:00:13]} ({Predecessor:} 9... Rb8 10. Qd2 b5 11. a3 a5 12. Rae1 f6 13. Be3 b4 14. axb4 axb4 15. Nd1 e5 {0-1 (32) Tudela Corbalan,C (2209)-Lopez Martinez,J (2535) Lorca 2015}) 10. Qd2 {[%emt 0:00:19]} f6 {[%emt 0:00:17]} (10... Rb8 {is interesting.} 11. Nb5 Qd8 12. c3 e5) 11. Be3 {[%emt 0:00:08]} a6 {[%emt 0:00:08]} 12. a4 {[%emt 0:00:08]} Bd7 {[%emt 0:00:02]} 13. Ne2 {[%emt 0:00:06]} O-O {[%emt 0:00:14]} 14. Bh6 {[%emt 0:00:16]} e5 {[%emt 0:00:25]} 15. Bxg7 {[%emt 0:00:06]} Kxg7 {[%emt 0:00:02]} 16. f4 {[%emt 0:00:07]} Nd4 {[%emt 0:00:12]} 17. Kh2 {[%emt 0:00:10]} Nxe2 {[%emt 0:00:09]} 18. Qxe2 {[%emt 0:00:02][%cal Of4f5]} Kh6 {[%emt 0:00:11]} (18... Bg4 $142 19. Qd2 Rad8) 19. Qd2 {[%emt 0:00:22] [#] fxe5+ is the strong threat.} Kh7 {[%emt 0:00:20]} (19... Kg7 $11) 20. Rf2 {[%emt 0:00:08]} (20. f5 $5) 20... Bg4 {[%emt 0:00:08]} 21. Raf1 {[%emt 0:00:06] And now fxe5 would win.} Ng8 {[%emt 0:00:14]} 22. Bf3 {[%emt 0:00:11]} Bxh3 {[%emt 0:00:03]} 23. Kxh3 {[%emt 0:00:02] next f5 is good for White.} Qd7+ {[%emt 0:00:02]} (23... exf4 $11 24. gxf4 f5) 24. Kh2 {[%emt 0:00:02]} (24. f5 $1 $16) 24... Qe7 $2 {[%emt 0:00:03] Black cannot hold the game after this.} (24... exf4 $1 $11 25. gxf4 (25. Qxf4 Nh6 $11) 25... f5) 25. f5 $18 {[%emt 0:00:06]} Qg7 {[%emt 0:00:03]} (25... gxf5 $142 26. Bxh5 fxe4) 26. fxg6+ {[%emt 0:00:08]} Qxg6 {[%emt 0:00:02]} 27. Qe2 {[%emt 0:00:06]} Kh6 {[%emt 0:00:02]} 28. Bg2 {[%emt 0:00:09]} (28. g4 $18) 28... Rf7 {[%emt 0:00:04]} (28... Kg7 $16 29. Bf3 Kh8 30. Bxh5 Qg7) 29. Bh3 {[%emt 0:00:05] [#] aiming for Bf5.} Rg7 $2 {[%emt 0:00:03]} (29... Kg7 30. Rf5 Ne7) 30. Qe3+ {[%emt 0:00:03] Weighted Error Value: White=0.21 (precise) /Black=0.36} 1-0

[Event "German-ch Blitz Women 2022"]
[Site "Magdeburg"]
[Date "2022.08.13"]
[Round "2.6"]
[White "Daemering, Katrin"]
[Black "Heil, Marina"]
[Result "0-1"]
[ECO "B00"]
[WhiteElo "1965"]
[BlackElo "1926"]
[Annotator "TA"]
[PlyCount "36"]
[EventDate "2022.08.10"]
[EventType "tourn"]
[EventCountry "GER"]
[SourceTitle "playchess.com"]
[Source "ChessBase"]
[SourceQuality "1"]
[TimeControl "180+2"]

{[%evp 9,36,25,39,7,31,22,36,9,42,24,52,35,53,0,18,-1,0,-12,0,0,33,34,56,41,76,-32,79,-1133,-1130]} 1. e4 d6 2. d4 Nf6 3. Bd3 e5 4. Nf3 Nbd7 5. Nc3 Be7 6. h3 {C41: Philidor Defence.} c6 7. Be3 h6 8. Qd2 {White is slightly better.} Qc7 9. O-O g5 10. Rad1 Nf8 {[%cal Bd7f8,Bf8g6,Bg6f4,Bf4e2][%mdl 32]} 11. dxe5 dxe5 {[#]} 12. Bc4 $146 ({Predecessor:} 12. Bxg5 hxg5 13. Qxg5 Ng6 14. Ne2 Bd7 15. Ng3 O-O-O 16. Nf5 Bxf5 17. Qxf5+ Kb8 18. Bc4 Rh5 19. Ng5 Nxe4 20. Qxe4 Rxg5 21. Bxf7 Nf4 22. Rxd8+ Bxd8 {0-1 (22) Emmanuel,B (1042)-Noble,J (1263) LSS email 2008}) 12... Ng6 13. Ne1 Nf4 14. Nd3 Rg8 15. f3 a5 16. a4 {Inhibits b5.} N6h5 17. Ne2 (17. Kh2 $16) 17... Bd7 (17... Nxe2+ $15 {keeps the upper hand.} 18. Qxe2 Ng3) 18. Qc3 $2 {[%mdl 8192] [#]} Nxe2+ {Weighted Error Value: White=0.72/Black=0.32} 0-1

[Event "German-ch Blitz Women 2022"]
[Site "Magdeburg"]
[Date "2022.08.13"]
[Round "2.7"]
[White "Khrapko, Marharyta"]
[Black "Leveikina, Jevgenija"]
[Result "1-0"]
[ECO "A01"]
[WhiteElo "2128"]
[BlackElo "2061"]
[Annotator "NA RC"]
[PlyCount "69"]
[EventDate "2022.08.10"]
[EventType "tourn"]
[EventCountry "GER"]
[SourceTitle "playchess.com"]
[Source "ChessBase"]
[SourceQuality "1"]
[TimeControl "180+2"]

1. b3 {[%emt 0:00:03]} c6 {[%emt 0:00:00]} 2. Bb2 {[%emt 0:00:00]} d5 {[%emt 0:00:01]} 3. e3 {[%emt 0:00:01]} Nf6 {[%emt 0:00:01]} 4. c4 {[%emt 0:00:00]} Bf5 {[%emt 0:00:01]} 5. Nc3 {[%emt 0:00:02]} e6 {[%emt 0:00:00]} 6. Nf3 {[%emt 0:00:01]} Be7 {[%emt 0:00:00]} 7. d3 {[%emt 0:00:01]} O-O {[%emt 0:00:02]} 8. Be2 {[%emt 0:00:00]} a5 {[%emt 0:00:00]} 9. O-O Nbd7 10. Qd2 {[%emt 0:00:03]} h6 {[%emt 0:00:02]} 11. Rac1 {[%emt 0:00:01]} Rc8 {[%emt 0:00:00]} 12. Rfd1 {[%emt 0:00:01]} Nc5 {[%emt 0:00:01]} 13. h3 {[%emt 0:00:01]} Re8 {[%emt 0:00:07]} 14. Bf1 {[%emt 0:00:16]} Qc7 {[%emt 0:00:01]} 15. Qe2 {[%emt 0:00:02]} Qb8 {[%emt 0:00:02]} 16. g3 {[%emt 0:00:35]} Rcd8 {[%emt 0:00:10]} 17. Ne1 {[%emt 0:00:15]} Bg6 {[%emt 0:00:16]} 18. Bg2 {[%emt 0:00:01]} Qa7 {[%emt 0:00:33]} 19. e4 {[%emt 0:00:03]} dxe4 {[%emt 0:00:09]} 20. dxe4 {[%emt 0:00:02]} e5 {[%emt 0:00:17]} 21. Kh2 {[%emt 0:00:24]} Qb8 {[%emt 0:00:00]} 22. Nc2 {[%emt 0:00:27]} Rxd1 {[%emt 0:00:14]} 23. Rxd1 Rd8 24. f3 {[%emt 0:00:07]} Ne6 {[%emt 0:00:05]} 25. Na4 {[%emt 0:00:06]} Nd7 {[%emt 0:00:09]} 26. Ne3 {[%emt 0:00:18]} Ndc5 {[%emt 0:00:15]} 27. Nxc5 {[%emt 0:00:22]} Nxc5 {[%emt 0:00:18]} 28. Rxd8+ {[%emt 0:00:06]} Bxd8 {[%emt 0:00:02]} 29. Qd1 {[%emt 0:00:02]} Bg5 {[%emt 0:00:13]} 30. Ng4 {[%emt 0:00:02]} Bf6 {[%emt 0:00:14]} 31. Nxf6+ {[%emt 0:00:07]} gxf6 {[%emt 0:00:00]} 32. Qd2 {[%emt 0:00:01]} Kh7 {[%emt 0:00:05]} 33. Qxa5 {[%emt 0:00:01]} Qd6 {[%emt 0:00:06]} 34. Ba3 {[%emt 0:00:02]} b5 {[%emt 0:00:24]} 35. Qb4 {[%emt 0:00:09]} 1-0

[Event "German-ch Blitz Women 2022"]
[Site "Magdeburg"]
[Date "2022.08.13"]
[Round "2.8"]
[White "Grabowski, Petra"]
[Black "Kosovska, Olena"]
[Result "0-1"]
[ECO "B06"]
[WhiteElo "1643"]
[BlackElo "1831"]
[Annotator "NA RC COMBH"]
[PlyCount "80"]
[EventDate "2022.08.10"]
[EventType "tourn"]
[EventCountry "GER"]
[SourceTitle "playchess.com"]
[Source "ChessBase"]
[SourceQuality "1"]
[TimeControl "180+2"]

1. d4 {[%emt 0:00:01]} g6 {[%emt 0:00:01]} 2. e4 {[%emt 0:00:04]} Bg7 {[%emt 0:00:01]} 3. Nc3 {[%emt 0:00:03]} d6 {[%emt 0:00:01]} 4. Be3 {[%emt 0:00:04]} Nf6 {[%emt 0:00:02]} 5. Qd2 {[%emt 0:00:08]} O-O {[%emt 0:00:05]} 6. Bh6 {[%emt 0:00:06]} c5 {[%emt 0:00:10]} 7. Nf3 {[%emt 0:00:09]} cxd4 {[%emt 0:00:06]} 8. Nxd4 {[%emt 0:00:04]} Nc6 {[%emt 0:00:01]} 9. Bxg7 {[%emt 0:00:05]} Kxg7 {[%emt 0:00:02]} 10. O-O-O {[%emt 0:00:07]} a6 {[%emt 0:00:09]} 11. Be2 {[%emt 0:00:07]} Qc7 {[%emt 0:00:22]} 12. h4 {[%emt 0:00:07]} h5 {[%emt 0:00:04]} 13. Rdg1 {[%emt 0:00:11]} e5 {[%emt 0:00:05]} 14. Nxc6 {[%emt 0:00:16]} bxc6 {[%emt 0:00:06]} 15. g4 {[%emt 0:00:03]} Nxg4 {[%emt 0:00:06]} 16. Bxg4 {[%emt 0:00:04]} Bxg4 {[%emt 0:00:01]} 17. Qg5 {[%emt 0:00:17]} Qd8 {[%emt 0:00:15]} 18. Rxg4 {[%emt 0:00:13]} hxg4 {[%emt 0:00:05]} 19. Qxg4 {[%emt 0:00:01]} Qf6 {[%emt 0:00:19]} 20. h5 {[%emt 0:00:09]} Qf4+ {[%emt 0:00:06]} 21. Qxf4 {[%emt 0:00:10]} exf4 {[%emt 0:00:00]} 22. h6+ {[%emt 0:00:06]} Kh7 {[%emt 0:00:00]} 23. f3 {[%emt 0:00:02]} Rfd8 {[%emt 0:00:00]} 24. Ne2 {[%emt 0:00:02]} g5 {[%emt 0:00:00]} 25. Rh5 {[%emt 0:00:06]} f6 {[%emt 0:00:00]} 26. Nd4 {[%emt 0:00:05]} d5 {[%emt 0:00:00]} 27. Nxc6 {[%emt 0:00:05]} Rd6 {[%emt 0:00:00]} 28. exd5 {[%emt 0:00:12]} Rxd5 {[%emt 0:00:00]} 29. Ne7 {[%emt 0:00:07]} Re5 {[%emt 0:00:00]} 30. Nc6 {[%emt 0:00:06]} Re3 {[%emt 0:00:00]} 31. Nd4 {[%emt 0:00:06]} Rd8 {[%emt 0:00:00]} 32. c3 {[%emt 0:00:03]} Kg6 {[%emt 0:00:19]} 33. Rh2 {[%emt 0:00:03]} Rh8 {[%emt 0:00:03]} 34. Nc2 {[%emt 0:00:10]} Rxf3 {[%emt 0:00:02]} 35. Re2 {[%emt 0:00:03]} Rxh6 {[%emt 0:00:02]} 36. Nd4 {[%emt 0:00:03]} Rf1+ {[%emt 0:00:06]} 37. Kc2 {[%emt 0:00:01]} Rhh1 {[%emt 0:00:06]} 38. Kb3 {[%emt 0:00:02]} f3 {[%emt 0:00:03]} 39. Nc2 {[%emt 0:00:08]} fxe2 {[%emt 0:00:03]} 40. Ne3 {[%emt 0:00:01]} e1=Q {[%emt 0:00:05]} 0-1